Workbook

Sheet 库存清单
C1: 库存清单 | F1: 是否突出显示待续订项目？ | H1: 是
B3: 已标记的待续订项目 | C3: 库存 ID | D3: 名称 | E3: 描述 | F3: 单价 | G3: 在库数量 | H3: 库存价值 | I3: 续订水平 | J3: 续订时间(天) | K3: 续订数量 | L3: 是否已停产？
B4: =IFERROR((库存清单[[#This Row],[在库数量]]<=库存清单[[#This Row],[续订水平]])*(库存清单[[#This Row],[是否已停产？]]="")*valHighlight,0) -> 1 | C4: IN0001 | D4: 项目 1 | E4: 描述 1 | F4: 51 | G4: 25 | H4: =库存清单[[#This Row],[单价]]*库存清单[[#This Row],[在库数量]] -> 1275 | I4: 29 | J4: 13 | K4: 50
B5: =IFERROR((库存清单[[#This Row],[在库数量]]<=库存清单[[#This Row],[续订水平]])*(库存清单[[#This Row],[是否已停产？]]="")*valHighlight,0) -> 1 | C5: IN0002 | D5: 项目​​ 2 | E5: 描述 2 | F5: 93 | G5: 132 | H5: =库存清单[[#This Row],[单价]]*库存清单[[#This Row],[在库数量]] -> 12276 | I5: 231 | J5: 4 | K5: 50
B6: =IFERROR((库存清单[[#This Row],[在库数量]]<=库存清单[[#This Row],[续订水平]])*(库存清单[[#This Row],[是否已停产？]]="")*valHighlight,0) -> 0 | C6: IN0003 | D6: 项目​​ 3 | E6: 描述 3 | F6: 57 | G6: 151 | H6: =库存清单[[#This Row],[单价]]*库存清单[[#This Row],[在库数量]] -> 8607 | I6: 114 | J6: 11 | K6: 150
B7: =IFERROR((库存清单[[#This Row],[在库数量]]<=库存清单[[#This Row],[续订水平]])*(库存清单[[#This Row],[是否已停产？]]="")*valHighlight,0) -> 0 | C7: IN0004 | D7: 项目 4 | E7: 描述 4 | F7: 19 | G7: 186 | H7: =库存清单[[#This Row],[单价]]*库存清单[[#This Row],[在库数量]] -> 3534 | I7: 158 | J7: 6 | K7: 50
B8: =IFERROR((库存清单[[#This Row],[在库数量]]<=库存清单[[#This Row],[续订水平]])*(库存清单[[#This Row],[是否已停产？]]="")*valHighlight,0) -> 0 | C8: IN0005 | D8: 项目​​ 5 | E8: 描述 5 | F8: 75 | G8: 62 | H8: =库存清单[[#This Row],[单价]]*库存清单[[#This Row],[在库数量]] -> 4650 | I8: 39 | J8: 12 | K8: 50
B9: =IFERROR((库存清单[[#This Row],[在库数量]]<=库存清单[[#This Row],[续订水平]])*(库存清单[[#This Row],[是否已停产？]]="")*valHighlight,0) -> 1 | C9: IN0006 | D9: 项目 6 | E9: 描述 6 | F9: 11 | G9: 5 | H9: =库存清单[[#This Row],[单价]]*库存清单[[#This Row],[在库数量]] -> 55 | I9: 9 | J9: 13 | K9: 150
B10: =IFERROR((库存清单[[#This Row],[在库数量]]<=库存清单[[#This Row],[续订水平]])*(库存清单[[#This Row],[是否已停产？]]="")*valHighlight,0) -> 0 | C10: IN0007 | D10: 项目 7 | E10: 描述 7 | F10: 56 | G10: 58 | H10: =库存清单[[#This Row],[单价]]*库存清单[[#This Row],[在库数量]] -> 3248 | I10: 109 | J10: 7 | K10: 100 | L10: 是
B11: =IFERROR((库存清单[[#This Row],[在库数量]]<=库存清单[[#This Row],[续订水平]])*(库存清单[[#This Row],[是否已停产？]]="")*valHighlight,0) -> 1 | C11: IN0008 | D11: 项目 8 | E11: 描述 8 | F11: 38 | G11: 101 | H11: =库存清单[[#This Row],[单价]]*库存清单[[#This Row],[在库数量]] -> 3838 | I11: 162 | J11: 3 | K11: 100
B12: =IFERROR((库存清单[[#This Row],[在库数量]]<=库存清单[[#This Row],[续订水平]])*(库存清单[[#This Row],[是否已停产？]]="")*valHighlight,0) -> 0 | C12: IN0009 | D12: 项目 9 | E12: 描述 9 | F12: 59 | G12: 122 | H12: =库存清单[[#This Row],[单价]]*库存清单[[#This Row],[在库数量]] -> 7198 | I12: 82 | J12: 3 | K12: 150
B13: =IFERROR((库存清单[[#This Row],[在库数量]]<=库存清单[[#This Row],[续订水平]])*(库存清单[[#This Row],[是否已停产？]]="")*valHighlight,0) -> 1 | C13: IN0010 | D13: 项目 10 | E13: 描述 10 | F13: 50 | G13: 175 | H13: =库存清单[[#This Row],[单价]]*库存清单[[#This Row],[在库数量]] -> 8750 | I13: 283 | J13: 8 | K13: 150
B14: =IFERROR((库存清单[[#This Row],[在库数量]]<=库存清单[[#This Row],[续订水平]])*(库存清单[[#This Row],[是否已停产？]]="")*valHighlight,0) -> 1 | C14: IN0011 | D14: 项目 11 | E14: 描述 11 | F14: 59 | G14: 176 | H14: =库存清单[[#This Row],[单价]]*库存清单[[#This Row],[在库数量]] -> 10384 | I14: 229 | J14: 1 | K14: 100
B15: =IFERROR((库存清单[[#This Row],[在库数量]]<=库存清单[[#This Row],[续订水平]])*(库存清单[[#This Row],[是否已停产？]]="")*valHighlight,0) -> 1 | C15: IN0012 | D15: 项目 12 | E15: 描述 12 | F15: 18 | G15: 22 | H15: =库存清单[[#This Row],[单价]]*库存清单[[#This Row],[在库数量]] -> 396 | I15: 36 | J15: 12 | K15: 50
B16: =IFERROR((库存清单[[#This Row],[在库数量]]<=库存清单[[#This Row],[续订水平]])*(库存清单[[#This Row],[是否已停产？]]="")*valHighlight,0) -> 1 | C16: IN0013 | D16: 项目 13 | E16: 描述 13 | F16: 26 | G16: 72 | H16: =库存清单[[#This Row],[单价]]*库存清单[[#This Row],[在库数量]] -> 1872 | I16: 102 | J16: 9 | K16: 100
B17: =IFERROR((库存清单[[#This Row],[在库数量]]<=库存清单[[#This Row],[续订水平]])*(库存清单[[#This Row],[是否已停产？]]="")*valHighlight,0) -> 1 | C17: IN0014 | D17: 项目 14 | E17: 描述 14 | F17: 42 | G17: 62 | H17: =库存清单[[#This Row],[单价]]*库存清单[[#This Row],[在库数量]] -> 2604 | I17: 83 | J17: 2 | K17: 100
B18: =IFERROR((库存清单[[#This Row],[在库数量]]<=库存清单[[#This Row],[续订水平]])*(库存清单[[#This Row],[是否已停产？]]="")*valHighlight,0) -> 0 | C18: IN0015 | D18: 项目 15 | E18: 描述 15 | F18: 32 | G18: 46 | H18: =库存清单[[#This Row],[单价]]*库存清单[[#This Row],[在库数量]] -> 1472 | I18: 23 | J18: 15 | K18: 50
B19: =IFERROR((库存清单[[#This Row],[在库数量]]<=库存清单[[#This Row],[续订水平]])*(库存清单[[#This Row],[是否已停产？]]="")*valHighlight,0) -> 1 | C19: IN0016 | D19: 项目 16 | E19: 描述 16 | F19: 90 | G19: 96 | H19: =库存清单[[#This Row],[单价]]*库存清单[[#This Row],[在库数量]] -> 8640 | I19: 180 | J19: 3 | K19: 50
B20: =IFERROR((库存清单[[#This Row],[在库数量]]<=库存清单[[#This Row],[续订水平]])*(库存清单[[#This Row],[是否已停产？]]="")*valHighlight,0) -> 0 | C20: IN0017 | D20: 项目 17 | E20: 描述 17 | F20: 97 | G20: 57 | H20: =库存清单[[#This Row],[单价]]*库存清单[[#This Row],[在库数量]] -> 5529 | I20: 98 | J20: 12 | K20: 50 | L20: 是
B21: =IFERROR((库存清单[[#This Row],[在库数量]]<=库存清单[[#This Row],[续订水平]])*(库存清单[[#This Row],[是否已停产？]]="")*valHighlight,0) -> 1 | C21: IN0018 | D21: 项目 18 | E21: 描述 18 | F21: 12 | G21: 6 | H21: =库存清单[[#This Row],[单价]]*库存清单[[#This Row],[在库数量]] -> 72 | I21: 7 | J21: 13 | K21: 50
B22: =IFERROR((库存清单[[#This Row],[在库数量]]<=库存清单[[#This Row],[续订水平]])*(库存清单[[#This Row],[是否已停产？]]="")*valHighlight,0) -> 1 | C22: IN0019 | D22: 项目 19 | E22: 描述 19 | F22: 82 | G22: 143 | H22: =库存清单[[#This Row],[单价]]*库存清单[[#This Row],[在库数量]] -> 11726 | I22: 164 | J22: 12 | K22: 150
B23: =IFERROR((库存清单[[#This Row],[在库数量]]<=库存清单[[#This Row],[续订水平]])*(库存清单[[#This Row],[是否已停产？]]="")*valHighlight,0) -> 0 | C23: IN0020 | D23: 项目 20 | E23: 描述 20 | F23: 16 | G23: 124 | H23: =库存清单[[#This Row],[单价]]*库存清单[[#This Row],[在库数量]] -> 1984 | I23: 113 | J23: 14 | K23: 50
B24: =IFERROR((库存清单[[#This Row],[在库数量]]<=库存清单[[#This Row],[续订水平]])*(库存清单[[#This Row],[是否已停产？]]="")*valHighlight,0) -> 0 | C24: IN0021 | D24: 项目 21 | E24: 描述 21 | F24: 19 | G24: 112 | H24: =库存清单[[#This Row],[单价]]*库存清单[[#This Row],[在库数量]] -> 2128 | I24: 75 | J24: 11 | K24: 50
B25: =IFERROR((库存清单[[#This Row],[在库数量]]<=库存清单[[#This Row],[续订水平]])*(库存清单[[#This Row],[是否已停产？]]="")*valHighlight,0) -> 0 | C25: IN0022 | D25: 项目 22 | E25: 描述 22 | F25: 24 | G25: 182 | H25: =库存清单[[#This Row],[单价]]*库存清单[[#This Row],[在库数量]] -> 4368 | I25: 132 | J25: 15 | K25: 150
B26: =IFERROR((库存清单[[#This Row],[在库数量]]<=库存清单[[#This Row],[续订水平]])*(库存清单[[#This Row],[是否已停产？]]="")*valHighlight,0) -> 0 | C26: IN0023 | D26: 项目 23 | E26: 描述 23 | F26: 29 | G26: 106 | H26: =库存清单[[#This Row],[单价]]*库存清单[[#This Row],[在库数量]] -> 3074 | I26: 142 | J26: 1 | K26: 150 | L26: 是
B27: =IFERROR((库存清单[[#This Row],[在库数量]]<=库存清单[[#This Row],[续订水平]])*(库存清单[[#This Row],[是否已停产？]]="")*valHighlight,0) -> 0 | C27: IN0024 | D27: 项目 24 | E27: 描述 24 | F27: 75 | G27: 173 | H27: =库存清单[[#This Row],[单价]]*库存清单[[#This Row],[在库数量]] -> 12975 | I27: 127 | J27: 9 | K27: 100
B28: =IFERROR((库存清单[[#This Row],[在库数量]]<=库存清单[[#This Row],[续订水平]])*(库存清单[[#This Row],[是否已停产？]]="")*valHighlight,0) -> 0 | C28: IN0025 | D28: 项目 25 | E28: 描述 25 | F28: 14 | G28: 28 | H28: =库存清单[[#This Row],[单价]]*库存清单[[#This Row],[在库数量]] -> 392 | I28: 21 | J28: 8 | K28: 50
